bitfinex/quotes_SOLUSD_20250930
["timestamp","ask_amount","ask_price","bid_price","bid_amount"]
[1759254246954,2.63933866,205.95,205.89,28.41459444]
[1759254246955,2.63933866,205.95,205.89,33.27155332]
[1759254247134,2.63933866,205.95,205.9,14.25559401]
[1759254247336,7.49493171,205.95,205.91,0.66]
[1759254248146,2.63933866,205.97,205.92,13.59559401]
[1759254248350,2.63933866,205.97,205.93,0.66]
[1759254248553,0.28432314,206.01,205.94,13.59559401]
[1759254248865,4.85413329,206.01,205.96,13.59559401]
[1759254249166,4.85413329,206.01,205.97,0.66]
[1759254249461,4.85413329,206.01,205.98,0.66]
[1759254249762,4.85413329,206.01,205.99,0.66]
[1759254250262,2.63933866,206.02,205.99,0.66]
[1759254251349,7.49351403,206.01,205.99,0.66]
[1759254252266,7.49351403,206.01,205.97,0.66]
[1759254252467,17.7095086,206.01,205.95,0.66]
[1759254252647,2.63933866,205.98,205.95,0.66]
[1759254252850,2.63933866,206.0,205.96,13.59559401]
[1759254253052,2.63933866,206.0,205.97,0.66]
[1759254253249,2.63933866,205.98,205.94,13.59559401]
[1759254253545,7.49479132,205.96,205.95,0.66]
[1759254253867,7.49479132,205.96,205.91,48.39559401]
[1759254254049,2.63933866,205.95,205.93,13.59559401]
[1759254254244,2.63933866,205.98,205.94,0.66]
[1759254254753,2.63933866,205.98,205.92,13.59559401]
[1759254254953,2.63933866,205.98,205.94,0.66]
[1759254255349,2.63933866,205.95,205.91,13.59559401]
[1759254255643,2.63933866,205.95,205.91,14.25559401]
[1759254255857,3.35933866,205.94,205.9,13.59559401]
[1759254256043,3.35933866,205.94,205.89,0.2]
[1759254256044,2.63933866,205.92,205.89,0.2]
[1759254256246,0.72,205.93,205.89,0.2]
[1759254256247,2.63933866,205.91,205.89,0.2]
[1759254256955,3.35933866,205.9,205.89,0.2]
[1759254257156,3.6436618,205.9,205.89,0.2]
[1759254257361,8.50038836,205.9,205.89,0.2]
[1759254257537,8.50038836,205.9,205.82,0.67]
[1759254257538,0.28432314,205.89,205.82,0.67]
[1759254257743,2.63933866,205.84,205.82,0.67]
[1759254257947,2.63933866,205.83,205.81,2.53686907]
[1759254258154,2.63933866,205.83,205.8,13.59559401]
[1759254258371,2.63933866,205.84,205.8,14.26559401]
[1759254258745,2.63933866,205.85,205.81,0.67]
[1759254258946,2.63933866,205.85,205.79,13.79559401]
[1759254258947,2.63933866,205.86,205.82,0.67]
[1759254259287,2.63933866,205.88,205.83,0.67]
[1759254259460,7.49663265,205.88,205.84,0.67]
[1759254259787,2.63933866,205.9,205.85,0.67]
[1759254259952,4.85649069,205.91,205.86,0.67]
[1759254260284,2.63933866,205.9,205.87,0.67]
[1759254260645,4.85649069,205.91,205.87,0.67]
[1759254260845,4.85601903,205.93,205.88,0.67]
[1759254261053,8.18535769,205.93,205.86,13.59559401]
[1759254261259,16.99606661,205.93,205.87,0.67]
[1759254261470,2.63933866,205.9,205.85,48.39559401]
[1759254261664,2.63933866,205.91,205.86,0.67]
[1759254261861,2.63933866,205.91,205.87,0.67]
[1759254262870,16.99606661,205.93,205.85,14.26559401]
[1759254262871,2.63933866,205.9,205.85,14.26559401]
[1759254263047,2.63933866,205.9,205.86,0.68]
[1759254263248,4.85696245,205.89,205.86,0.68]
[1759254264573,4.85660733,205.91,205.87,3.31933866]
[1759254264768,138.35621584,205.93,205.88,0.68]
[1759254265075,138.35621584,205.93,205.89,0.68]
[1759254266068,138.35621584,205.93,205.84,39.65798319]
[1759254266069,2.63933866,205.9,205.84,13.59559401]
[1759254266248,2.63933866,205.87,205.82,49.07559401]
[1759254266444,2.63933866,205.87,205.83,0.68]
[1759254266760,3.31933866,205.87,205.82,48.39559401]
[1759254266957,2.63933866,205.86,205.82,13.59559401]
[1759254267158,2.63933866,205.86,205.81,48.39559401]
[1759254267364,0.68,205.9,205.82,0.68]
[1759254267671,2.63933866,205.87,205.82,0.68]
[1759254267868,4.85814224,205.84,205.81,34.8]
[1759254268174,4.85791098,205.85,205.82,0.68]
[1759254268364,4.85791098,205.85,205.81,34.8]
[1759254268569,20.32201524,205.85,205.8,13.59559401]
[1759254268877,2.63933866,205.84,205.8,48.41559401]
[1759254269168,2.63933866,205.84,205.79,0.2]
[1759254269346,2.63933866,205.84,205.8,0.68]
[1759254269749,2.63933866,205.83,205.79,0.2]
[1759254270056,4.85861432,205.82,205.79,0.2]
[1759254270269,4.85861432,205.82,205.79,0.88]
[1759254271384,4.85861432,205.82,205.8,0.68]
[1759254271775,4.85824766,205.84,205.79,0.2]
[1759254272077,4.85782989,205.86,205.8,0.68]
[1759254272278,4.85782989,205.86,205.8,14.27559401]
[1759254272500,4.85782989,205.86,205.8,16.91493267]
[1759254272667,4.85782989,205.86,205.8,14.27559401]
[1759254272968,4.85782989,205.86,205.81,0.68]
[1759254273588,5.53782989,205.86,205.81,0.68]
[1759254274086,2.63933866,205.9,205.83,13.59559401]
[1759254274383,7.49606522,205.9,205.83,14.27559401]
[1759254274562,19.63788163,205.9,205.83,14.27559401]
[1759254274878,2.63933866,205.88,205.83,14.27559401]
[1759254275075,3.31933866,205.88,205.83,14.27559401]
[1759254276092,2.63933866,205.88,205.84,0.68]
[1759254276382,2.63933866,205.89,205.84,0.68]
[1759254276685,3.31933866,205.89,205.84,0.68]
[1759254277085,2.63933866,205.88,205.83,13.59559401]
[1759254277260,2.63933866,205.86,205.82,34.82]
[1759254277783,2.63933866,205.83,205.79,0.2]
[1759254277980,2.63933866,205.81,205.79,0.2]
[1759254278156,0.68,205.81,205.79,0.2]
[1759254278362,7.49842515,205.8,205.79,0.2]
[1759254278966,8.17842515,205.8,205.79,0.2]
[1759254279279,8.46274829,205.8,205.79,0.2]
[1759254280269,5.82340963,205.8,205.79,0.2]
[1759254280781,5.14340963,205.8,205.79,0.2]
[1759254280961,5.82340963,205.8,205.79,0.2]
[1759254283164,8.46274829,205.8,205.79,0.2]
[1759254283572,5.82340963,205.8,205.79,0.2]
[1759254283886,8.46274829,205.8,205.79,0.2]
[1759254284086,7.78274829,205.8,205.79,0.2]
[1759254285875,2.63933866,205.82,205.79,0.88]
[1759254286076,5.53719843,205.88,205.8,0.68]
[1759254286276,4.85719843,205.88,205.81,1.69288439]
[1759254286474,4.85719843,205.88,205.82,0.68]
[1759254286792,1.69288439,205.87,205.82,0.68]
[1759254287088,1.69288439,205.85,205.79,0.88]
[1759254287292,1.69288439,205.83,205.79,0.88]
[1759254287986,1.69288439,205.82,205.79,0.2]
[1759254288295,4.49083132,205.84,205.8,0.68]
[1759254288472,9.34909756,205.84,205.8,0.68]
[1759254288676,4.85826624,205.84,205.8,0.68]
[1759254288870,9.34909756,205.84,205.8,0.68]
[1759254289069,4.49083132,205.83,205.8,0.68]
[1759254289386,4.49083132,205.83,205.79,0.2]
[1759254289784,4.49083132,205.83,205.79,0.88]
[1759254290569,16.63618693,205.84,205.79,0.88]
[1759254291002,17.00432395,205.83,205.79,0.88]
[1759254291168,17.00432395,205.83,205.79,0.2]
[1759254291169,4.49083132,205.81,205.79,0.2]
[1759254291872,4.49083132,205.82,205.79,0.88]
[1759254292094,9.34901177,205.84,205.8,0.68]
[1759254292590,4.85818045,205.84,205.8,0.68]
[1759254292893,9.34901177,205.84,205.8,0.68]
[1759254294166,0.28432314,205.87,205.81,0.67]
[1759254294373,4.85730996,205.88,205.82,18.08642533]
[1759254294574,4.85698551,205.89,205.83,0.67]
[1759254294881,0.72,205.91,205.84,9.34897356]
[1759254294882,4.85652593,205.91,205.84,9.34897356]
[1759254295082,4.85652593,205.91,205.85,0.67]
[1759254295277,4.49083132,205.87,205.79,9.54992858]
[1759254295484,4.49083132,205.86,205.8,49.08559401]
[1759254295677,4.49083132,205.86,205.81,0.67]
[1759254295996,4.49083132,205.86,205.82,0.67]
[1759254296170,1.00432314,205.88,205.82,0.67]
[1759254296368,4.49083132,205.86,205.82,0.67]
[1759254296800,4.85814224,205.84,205.8,48.41559401]
[1759254297097,4.85814224,205.84,205.79,0.2]
[1759254297098,9.34897356,205.84,205.79,35.0]
[1759254297394,4.85814224,205.84,205.81,0.67]
[1759254297776,9.3487639,205.85,205.81,0.67]
[1759254297971,4.85793258,205.85,205.81,0.67]
[1759254298282,4.85793258,205.85,205.82,0.67]
[1759254298486,4.85793258,205.85,205.8,0.67]
[1759254298670,4.85793258,205.85,205.81,0.67]
[1759254299199,9.3487639,205.85,205.79,35.67]
[1759254299692,9.3487639,205.85,205.8,0.67]
[1759254299893,5.21083132,205.84,205.79,35.0]
[1759254300279,4.49083132,205.8,205.79,0.2]
[1759254300583,4.77515446,205.8,205.79,0.2]
[1759254300779,5.49515446,205.8,205.79,0.2]
[1759254300979,5.49515446,205.8,205.79,1e-08]
[1759254301292,10.35424095,205.8,205.79,1e-08]
[1759254302273,9.63424095,205.8,205.79,1e-08]
[1759254302479,10.35424095,205.8,205.79,1e-08]
[1759254306905,10.35424095,205.8,205.76,0.2]
[1759254306906,0.28432314,205.79,205.76,1e-08]
[1759254307101,4.77515446,205.77,205.76,1e-08]
[1759254307593,5.14411805,205.77,205.76,1e-08]
[1759254307791,9.63494937,205.77,205.76,1e-08]
[1759254308572,5.14411805,205.77,205.76,1e-08]
[1759254310018,9.63494937,205.77,205.76,1e-08]
[1759254310198,7.55911047,205.77,205.76,1e-08]
[1759254311988,6.83911047,205.77,205.76,1e-08]
[1759254313914,6.83911047,205.77,205.76,0.67000001]
[1759254313915,5.14411805,205.77,205.76,0.67000001]
[1759254314122,4.85979491,205.77,205.76,0.67000001]
[1759254314293,4.85979491,205.77,205.76,1e-08]
[1759254314483,6.55478733,205.77,205.76,1e-08]
[1759254315900,4.85979491,205.77,205.76,0.67000001]
[1759254316615,46.94623689,205.83,205.76,0.67000001]
[1759254316820,4.85861432,205.82,205.77,13.59559401]
[1759254316991,6.55333553,205.84,205.78,0.67]
[1759254317594,1.69499242,205.82,205.78,0.67]
[1759254317818,1.69499242,205.79,205.76,0.70000001]
[1759254318003,17.00597637,205.81,205.76,0.70000001]
[1759254318004,1.69499242,205.77,205.76,1e-08]
[1759254318502,1.69499242,205.77,205.76,0.70000001]
[1759254318686,1.69499242,205.77,205.76,1e-08]
[1759254319601,1.69499242,205.77,205.76,0.70000001]
[1759254319807,4.85979491,205.77,205.76,0.70000001]
[1759254319991,0.28432314,205.8,205.76,0.70000001]
[1759254320194,6.55407891,205.8,205.77,0.7]
[1759254320393,6.55407891,205.8,205.78,0.7]
[1759254320581,4.85885158,205.81,205.78,0.7]
[1759254320781,0.28432314,205.81,205.79,0.7]
[1759254321086,140.05364632,205.82,205.8,0.7]
[1759254321281,133.5,205.82,205.8,0.7]
[1759254322595,133.5,205.82,205.81,0.7]
[1759254322988,133.5,205.82,205.81,0.68]
[1759254323595,133.5,205.82,205.77,14.27559401]
[1759254323818,140.05360674,205.82,205.78,0.68]
[1759254324029,135.19499242,205.82,205.78,5.5394212]
[1759254324191,133.5,205.82,205.78,5.5394212]
[1759254324391,133.5,205.82,205.79,0.68]
[1759254325219,4.85803898,205.85,205.79,0.68]
[1759254325704,17.00280458,205.85,205.79,0.68]
[1759254325901,5.14175744,205.87,205.79,0.68]
[1759254326101,1.69499242,205.85,205.79,0.68]
[1759254326603,6.55222012,205.88,205.8,13.59559401]
[1759254326804,6.55222012,205.88,205.81,0.68]
[1759254327210,0.28432314,205.9,205.81,0.68]
[1759254327211,4.85683041,205.9,205.84,13.59559401]
[1759254327396,4.85683041,205.9,205.85,0.68]
[1759254327594,4.85683041,205.9,205.86,0.68]
[1759254328128,1.69499242,205.87,205.81,0.68]
[1759254328302,0.67,205.87,205.8,0.68]
[1759254328626,1.69499242,205.86,205.8,0.68]
[1759254328829,1.69499242,205.85,205.8,0.68]
[1759254329031,1.69499242,205.85,205.81,0.68]
[1759254329603,1.69499242,205.84,205.78,14.27559401]
[1759254330011,4.85837827,205.83,205.79,0.68]
[1759254332513,1.69499242,205.78,205.76,1e-08]
[1759254332829,1.69499242,205.79,205.76,1e-08]
[1759254333529,1.69499242,205.78,205.76,1e-08]
[1759254333735,1.69499242,205.79,205.76,1e-08]
[1759254334231,6.55455117,205.78,205.76,1e-08]
[1759254334428,7.22455117,205.78,205.76,1e-08]
[1759254334943,4.85925542,205.8,205.77,0.68]
[1759254335313,4.85925542,205.8,205.76,1e-08]
[1759254335619,4.85888085,205.81,205.77,0.68]
[1759254335817,4.85888085,205.81,205.78,0.68]
[1759254336417,4.85888085,205.81,205.76,0.68000001]
[1759254336716,4.85888085,205.81,205.77,0.68]
[1759254337938,4.85888085,205.81,205.76,1e-08]
[1759254337939,133.5,205.8,205.76,1e-08]
[1759254338138,133.5,205.8,205.77,0.68]
[1759254338340,138.35926622,205.8,205.77,0.68]
[1759254339234,133.5,205.8,205.77,0.68]
[1759254339627,138.35911011,205.8,205.77,0.68]
[1759254339932,133.5,205.8,205.76,4.85998111]
[1759254340141,133.5,205.8,205.78,0.68]
[1759254340341,133.5,205.8,205.79,14.27559401]
[1759254340636,4.85794892,205.85,205.8,13.59559401]
[1759254340935,1.69499242,205.84,205.77,15.29058643]
[1759254341135,1.69499242,205.84,205.8,0.68]
[1759254342138,1.69499242,205.84,205.78,13.59559401]
[1759254342328,1.69499242,205.84,205.78,14.27559401]
[1759254342528,1.69499242,205.84,205.79,0.68]
[1759254342941,2.36499242,205.84,205.79,0.68]
[1759254343318,0.67,205.83,205.78,13.59559401]
[1759254343636,1.69499242,205.81,205.76,1e-08]
[1759254343820,1.69499242,205.79,205.76,1e-08]
[1759254344637,4.85955875,205.78,205.76,0.68000001]
[1759254344943,4.85908649,205.8,205.77,0.68]
[1759254345138,6.55407891,205.8,205.76,1e-08]
[1759254345442,4.85889707,205.81,205.77,0.68]
[1759254345742,138.35865216,205.82,205.78,13.59559401]
[1759254346036,138.35865216,205.82,205.78,14.27559401]
[1759254346731,138.35865216,205.82,205.79,0.68]
[1759254347258,138.35865216,205.82,205.77,14.27559401]
[1759254347439,138.35865216,205.82,205.78,0.68]
[1759254347629,138.35865216,205.82,205.79,0.68]
[1759254348341,133.5,205.82,205.8,0.68]
[1759254349217,133.5,205.82,205.81,0.68]
[1759254349422,133.5,205.82,205.81,16.92210316]
[1759254352049,133.5,205.82,205.81,21.78095355]
[1759254352344,133.5,205.82,205.81,14.27559401]
[1759254352647,133.5,205.82,205.81,16.92210316]
[1759254358948,133.5,205.82,205.81,51.68210316]
[1759254359253,150.49941471,205.89,205.82,13.59559401]
[1759254359451,150.49941471,205.89,205.83,34.76]
[1759254359452,2.64650915,205.87,205.83,34.76]
[1759254359750,0.69,205.86,205.83,34.76]
[1759254360255,0.69,205.85,205.83,34.76]
[1759254360559,0.28432314,205.88,205.76,1e-08]
[1759254360560,0.28432314,205.83,205.76,1e-08]
[1759254360744,2.64650915,205.8,205.76,1e-08]
[1759254361139,17.00762913,205.79,205.76,1e-08]
[1759254361333,12.14670391,205.82,205.76,1e-08]
[1759254361540,0.69,205.79,205.76,13.59559402]
[1759254361747,0.69,205.79,205.77,34.76]
[1759254361956,0.69,205.78,205.77,34.76]
[1759254362157,3.33650915,205.8,205.77,34.76]
[1759254362356,0.69,205.79,205.77,34.76]
[1759254363061,4.85955875,205.78,205.77,34.76]
[1759254364557,8.1960679,205.78,205.76,1e-08]
[1759254364765,2.93083229,205.77,205.76,1e-08]
[1759254365262,3.62083229,205.77,205.76,1e-08]
[1759254365664,38.38083229,205.77,205.76,1e-08]
[1759254366657,46.51029764,205.77,205.76,1e-08]
[1759254367234,2.64650915,205.7,205.69,0.2]
[1759254367748,3.33650915,205.7,205.69,0.2]
[1759254368056,0.83216157,205.74,205.69,0.2]
[1759254368362,2.64650915,205.7,205.69,0.2]
[1759254368858,4.86144871,205.7,205.69,0.2]
[1759254369055,34.76,205.74,205.69,0.86]
[1759254369056,4.86066678,205.74,205.69,0.86]
[1759254369252,4.85979491,205.77,205.72,13.59559401]
[1759254369457,4.8594148,205.79,205.74,16.24210316]
[1759254369759,4.8594148,205.79,205.75,0.66]
[1759254369962,4.8594148,205.79,205.74,48.35559401]
[1759254370254,4.85861432,205.82,205.77,2.64650915]
[1759254370462,4.85790624,205.85,205.8,2.64650915]
[1759254370643,4.85790624,205.85,205.82,2.64650915]
[1759254370841,17.00144997,205.87,205.82,3.30650915]
[1759254371068,17.69144997,205.87,205.82,3.30650915]
[1759254371747,17.00144997,205.87,205.82,3.30650915]
[1759254371938,20.33795912,205.87,205.81,2.64650915]
[1759254372352,17.69144997,205.87,205.81,6.63633257]
[1759254372572,17.00144997,205.87,205.82,0.66]
[1759254372736,17.00144997,205.87,205.8,13.59559401]
[1759254372934,6.63633257,205.82,205.77,13.59559401]
[1759254373155,17.00432395,205.83,205.77,20.23192658]
[1759254373356,4.85837827,205.83,205.78,7.29633257]
[1759254373547,4.85837827,205.83,205.79,0.66]
[1759254373742,4.85837827,205.83,205.79,7.29633257]
[1759254373946,4.85837827,205.83,205.8,0.66]
[1759254374749,5.54837827,205.83,205.79,13.59559401]
[1759254374957,7.32633257,205.82,205.76,6.63633257]
[1759254375149,17.00432395,205.83,205.77,20.89192658]
[1759254375350,17.00432395,205.83,205.78,6.63633257]
[1759254375664,17.00432395,205.83,205.79,7.29633257]
[1759254375665,4.85837827,205.83,205.79,7.29633257]
[1759254375873,4.85790624,205.85,205.81,6.63633257]
[1759254376178,4.85790624,205.85,205.83,6.63633257]
[1759254376379,17.00019427,205.88,205.83,7.29633257]
[1759254377169,17.00019427,205.88,205.83,0.66]
[1759254377367,23.63652684,205.88,205.82,6.63633257]
[1759254377565,24.33652684,205.88,205.82,6.63633257]
[1759254377757,24.33652684,205.88,205.82,13.59559401]
[1759254377954,6.63633257,205.87,205.8,6.63633257]
[1759254378154,6.63633257,205.86,205.8,6.63633257]
[1759254378467,6.63633257,205.85,205.79,7.33633257]
[1759254378675,3.26356065,205.88,205.83,6.63633257]
[1759254378977,0.28432314,205.89,205.84,0.7]
[1759254379166,11.49353093,205.88,205.81,0.7]
[1759254379366,11.49353093,205.88,205.82,6.63633257]
[1759254380059,11.49353093,205.88,205.83,0.7]
[1759254380251,6.63633257,205.86,205.8,6.63633257]
[1759254380450,6.63633257,205.85,205.8,13.59559401]
[1759254380649,6.63633257,205.86,205.8,20.23192658]
[1759254380881,6.63633257,205.86,205.8,20.93192658]
[1759254381487,17.00267184,205.85,205.8,14.29559401]
[1759254381687,17.00267184,205.85,205.81,0.7]
[1759254382385,17.00267184,205.85,205.8,20.23192658]
[1759254382559,17.00267184,205.85,205.8,20.93192658]
[1759254383171,7.31633257,205.84,205.78,34.76]
[1759254383384,7.31633257,205.84,205.71,12.43686606]
[1759254383385,6.63633257,205.81,205.74,0.69]
[1759254383574,0.68,205.83,205.74,0.69]
[1759254383575,24.32313528,205.8,205.75,13.59559401]
[1759254384885,23.64313528,205.8,205.75,0.69]
[1759254385091,0.68,205.79,205.74,20.23192658]
[1759254385266,23.64313528,205.8,205.74,14.28559401]
[1759254385587,7.31633257,205.79,205.71,0.69]
[1759254385786,6.63633257,205.76,205.69,0.2]
[1759254385960,6.63633257,205.75,205.71,13.59559401]
[1759254386283,6.63633257,205.74,205.7,34.76]
[1759254386475,6.63633257,205.74,205.69,0.2]
[1759254386659,133.5,205.78,205.69,0.2]
[1759254386660,6.63633257,205.72,205.69,0.2]
[1759254386859,6.63633257,205.71,205.69,0.2]
[1759254387775,4.86144871,205.7,205.69,0.2]
[1759254388664,4.86119547,205.72,205.69,0.2]
[1759254389570,6.63633257,205.74,205.69,0.89]
[1759254389891,4.86024138,205.76,205.71,20.23192658]
[1759254390088,4.86024138,205.76,205.72,0.69]
[1759254390392,6.63633257,205.8,205.73,7.32633257]
[1759254390686,4.85908649,205.8,205.74,14.28559401]
[1759254390891,4.85908649,205.8,205.77,6.63633257]
[1759254391073,4.85790624,205.85,205.79,6.63633257]
[1759254391274,4.02925315,205.93,205.83,6.63633257]
[1759254391275,6.63633257,205.89,205.83,6.63633257]
[1759254391790,4.85719836,205.88,205.83,6.63633257]
[1759254392502,6.63633257,205.86,205.8,6.63633257]
[1759254392786,6.63633257,205.83,205.78,13.59559401]
[1759254392993,6.63633257,205.86,205.8,6.63633257]
[1759254393677,11.49400283,205.86,205.8,6.63633257]
[1759254394267,6.63633257,205.84,205.78,20.23192658]
[1759254394476,6.63633257,205.84,205.78,13.59559401]
[1759254394687,6.63633257,205.83,205.78,13.59559401]
[1759254394894,6.63633257,205.82,205.78,13.59559401]
[1759254395090,6.63633257,205.83,205.78,14.28559401]
[1759254395272,6.63633257,205.84,205.78,13.59559401]
[1759254395588,4.85767026,205.86,205.8,20.23192658]
[1759254395891,20.8,205.88,205.82,20.23192658]
[1759254395892,4.85744547,205.87,205.82,20.23192658]
[1759254396071,4.85744547,205.87,205.83,0.69]
[1759254397279,23.63736379,205.87,205.82,13.59559401]
[1759254397485,23.63736379,205.87,205.82,14.28559401]
[1759254398295,4.85744547,205.87,205.83,0.69]
[1759254398591,20.94216157,205.89,205.83,0.69]
[1759254398592,27.43633257,205.89,205.84,0.69]
[1759254398781,32.97330898,205.89,205.84,13.59559401]
[1759254399486,45.11571511,205.89,205.84,13.59559401]
[1759254399672,37.79938254,205.89,205.82,7.32633257]
[1759254399877,4.85767026,205.86,205.82,0.69]
[1759254400666,4.85767026,205.86,205.82,14.28559401]
[1759254400872,4.85767026,205.86,205.83,6.63633257]
[1759254401090,4.85767026,205.86,205.82,20.92192658]
[1759254401881,17.00121684,205.87,205.82,20.92192658]
[1759254402191,4.8574343,205.87,205.82,6.63633257]
[1759254402399,4.8574343,205.87,205.82,7.32633257]
[1759254402793,11.49376687,205.87,205.82,0.69]
[1759254402979,23.63735262,205.87,205.82,0.69]
[1759254405694,6.63633257,205.86,205.81,13.59559401]
[1759254405901,0.68,205.91,205.82,7.32633257]
[1759254406081,0.68,205.91,205.84,13.59559401]
[1759254406082,6.63633257,205.9,205.84,13.59559401]
[1759254406288,11.49329502,205.89,205.84,13.59559401]
[1759254406489,23.63570115,205.89,205.84,14.28559401]
[1759254407579,23.63570115,205.89,205.84,13.59559401]
[1759254407895,6.63633257,205.86,205.82,13.59559401]
[1759254408106,6.63633257,205.86,205.81,34.76]
[1759254408405,17.00349785,205.84,205.81,34.76]
[1759254409481,17.00349785,205.84,205.81,35.45]
[1759254410502,4.85790624,205.85,205.81,35.45]
[1759254411003,4.85790624,205.85,205.82,0.69]
[1759254411200,4.85790624,205.85,205.81,34.76]
[1759254411380,4.85790624,205.85,205.81,35.45]
[1759254412204,4.85790624,205.85,205.82,0.69]
[1759254412504,4.85767026,205.86,205.82,0.69]
[1759254412688,4.85767026,205.86,205.81,39.25025343]
[1759254412893,4.85767026,205.86,205.82,0.69]
[1759254413201,4.85767026,205.86,205.82,14.28559401]
[1759254413499,17.00184591,205.86,205.81,39.25025343]
[1759254413795,17.00184591,205.86,205.81,34.76]
[1759254413796,22.21209934,205.86,205.81,34.76]
[1759254413981,21.49209934,205.86,205.81,35.44]
[1759254414175,17.00184591,205.86,205.81,34.76]
[1759254414396,17.00184591,205.86,205.82,0.68]
[1759254414597,17.00184591,205.86,205.83,0.68]
[1759254415183,17.00184591,205.86,205.81,37.13326326]
[1759254415384,17.00184591,205.86,205.82,0.68]
[1759254415680,17.72184591,205.86,205.81,36.45326326]
[1759254415898,17.72184591,205.86,205.81,37.13326326]
[1759254416096,17.00184591,205.86,205.81,35.44]
[1759254416290,18.69510917,205.86,205.81,35.44]
[1759254416583,4.8574343,205.87,205.82,0.68]
[1759254416788,7.27069756,205.87,205.82,0.68]
[1759254416985,6.55069756,205.87,205.81,36.45326326]
[1759254417201,4.8574343,205.87,205.82,2.37326326]
[1759254417395,4.8574343,205.87,205.83,0.68]
[1759254417614,2.41326326,205.86,205.81,34.76]
[1759254417981,2.41326326,205.86,205.81,35.44]
[1759254418388,1.69326326,205.85,205.81,35.44]
[1759254418906,4.85814224,205.84,205.81,35.44]
[1759254419315,6.5514055,205.84,205.81,34.74]
[1759254419811,1.69326326,205.82,205.76,2.37326326]
[1759254420022,17.00349785,205.84,205.77,13.59559401]
[1759254420023,135.91326326,205.81,205.77,13.59559401]
[1759254420315,1.69326326,205.79,205.77,34.74]
[1759254420912,4.85955875,205.78,205.77,34.74]
[1759254421122,133.5,205.81,205.77,35.42]
[1759254421290,4.85790624,205.85,205.8,1.69326326]
[1759254421498,4.85790624,205.85,205.82,1.69326326]
[1759254421699,4.85764609,205.87,205.83,0.68]
[1759254421897,4.85764609,205.87,205.84,0.68]
[1759254422707,17.00019427,205.88,205.84,35.42]
[1759254422908,1.69326326,205.85,205.81,34.74]
[1759254423096,2.41326326,205.84,205.81,34.74]
[1759254423312,1.69326326,205.84,205.81,34.74]
[1759254424228,4.85837827,205.83,205.81,34.74]
[1759254424530,0.28432314,205.81,205.72,0.68]
[1759254424702,1.69326326,205.76,205.73,34.74]
[1759254424903,1.69326326,205.76,205.73,34.5]
[1759254425114,1.69326326,205.74,205.73,34.5]
[1759254425304,1.69326326,205.76,205.73,35.18]
[1759254425527,1.69326326,205.76,205.74,0.68]
[1759254425712,1.69326326,205.76,205.73,34.5]
[1759254425912,1.69326326,205.76,205.73,35.18]
[1759254426142,1.69326326,205.75,205.73,34.5]
[1759254426381,4.86050354,205.74,205.73,34.5]
[1759254427016,17.01176241,205.74,205.71,13.59559401]
[1759254427232,1.69326326,205.73,205.69,0.2]
[1759254427444,1.69326326,205.72,205.7,34.74]
[1759254427720,1.69326326,205.71,205.69,0.2]
[1759254427927,1.69326326,205.7,205.69,0.2]
[1759254428317,4.86097608,205.72,205.69,0.2]
[1759254428631,17.01341628,205.72,205.69,0.2]
[1759254428817,4.49731681,205.71,205.69,0.2]
[1759254429011,4.49731681,205.7,205.69,0.2]
[1759254429416,4.86097608,205.72,205.69,0.88]
[1759254429605,21.51073309,205.72,205.69,0.88]
[1759254430214,4.49731681,205.71,205.69,0.2]
[1759254430414,17.73341628,205.72,205.69,0.2]
[1759254430415,4.49731681,205.7,205.69,0.2]
[1759254431015,4.86144871,205.7,205.69,0.2]
[1759254433720,4.86144871,205.7,205.69,0.88]
[1759254434932,0.28432314,205.76,205.69,0.88]
[1759254434933,133.5,205.78,205.7,13.59559401]
[1759254435131,138.35958581,205.78,205.74,4.49731681]
[1759254435430,138.35958581,205.78,205.75,14.27559401]
[1759254435731,22.2257995,205.78,205.74,13.59559401]
[1759254435916,4.49731681,205.77,205.73,35.44]
[1759254436116,4.49731681,205.76,205.73,34.76]
[1759254436435,4.49731681,205.75,205.73,34.76]